fUSD/lending_fUSD_20240521
["ID","MTS","AMOUNT","RATE_DAILY","PERIOD"]
[327636570,1716263453960,-500.0,0.00039013,6]
[327636571,1716263453970,-1235.47,0.00039013,2]
[327636572,1716263453979,-500.0,0.00039013,6]
[327636573,1716263453989,-500.0,0.00039013,6]
[327636574,1716263453999,-500.0,0.00039013,6]
[327636575,1716263454008,-658.46,0.00039013,6]
[327636576,1716263454018,-500.0,0.00039013,6]
[327636577,1716263454028,-500.0,0.00039013,6]
[327636578,1716263454038,-739.19,0.00039013,6]
[327636579,1716263454048,-503.45,0.00039013,6]
[327636580,1716263454057,-1104.86,0.00039013,6]
[327636581,1716263454067,-508.3,0.00039013,6]
[327636582,1716263454077,-500.0,0.00039013,6]
[327636583,1716263454087,-1105.79,0.00039013,6]
[327636584,1716263454096,-619.37,0.00039013,6]
[327636585,1716263454106,-657.24,0.00039013,6]
[327636586,1716263454116,-500.0,0.00039013,6]
[327636587,1716263454124,-500.0,0.00039013,6]
[327636588,1716263454134,-1084.55,0.00039013,6]
[327636589,1716263454143,-500.0,0.00039013,6]
[327636590,1716263454152,-1791.33,0.00039013,6]
[327636591,1716263454162,-500.0,0.00039013,6]
[327636592,1716263454171,-985.02,0.00039013,6]
[327636593,1716263454181,-544.38,0.00039013,6]
[327636594,1716263454190,-604.09,0.00039013,6]
[327636595,1716263454200,-882.34,0.00039013,6]
[327636596,1716263454209,-500.0,0.00039013,6]
[327636597,1716263454219,-1504.16,0.00039013,6]
[327636598,1716263454228,-500.0,0.00039013,6]
[327636599,1716263454238,-2390.17,0.00039013,6]
[327636600,1716263454248,-500.0,0.00039013,6]
[327636601,1716263454257,-1117.86,0.00039013,6]
[327636602,1716263454266,-872.47,0.00039013,6]
[327636603,1716263454275,-799.39,0.00039013,6]
[327636604,1716263454285,-931.34,0.00039013,6]
[327636605,1716263454620,-1219.75,0.00039013,6]
[327636606,1716263454638,-687.36,0.00039013,6]
[327636607,1716263454648,-500.0,0.00039013,6]
[327636608,1716263454658,-500.0,0.00039013,6]
[327636609,1716263454668,-952.69,0.00039013,6]
[327636610,1716263454677,-1140.12,0.00039013,6]
[327636611,1716263454686,-1004.01,0.00039013,6]
[327636612,1716263454696,-995.17,0.00039013,6]
[327636613,1716263454705,-500.0,0.00039013,6]
[327636614,1716263454715,-500.0,0.00039013,6]
[327636615,1716263454724,-1240.48,0.00039013,6]
[327636616,1716263454734,-1874.47,0.00039013,6]
[327636617,1716263454743,-489.11199147,0.00039013,6]
[327636618,1716263454752,-500.0,0.00039013,6]
[327636619,1716263454762,-500.0,0.00039013,6]
[327636620,1716263454772,-883.75,0.00039013,6]
[327636621,1716263454781,-506.91786991,0.00039013,6]
[327636622,1716263454791,-667.19,0.00039013,6]
[327636623,1716263454801,-500.0,0.00039013,6]
[327636624,1716263454811,-748.0,0.00039013,6]
[327636625,1716263454820,-500.0,0.00039013,6]
[327636626,1716263454829,-500.0,0.00039013,6]
[327636627,1716263454839,-1140.03,0.00039013,6]
[327636628,1716263454848,-500.0,0.00039013,6]
[327636629,1716263454858,-500.0,0.00039013,6]
[327636630,1716263454871,-817.58,0.00039013,6]
[327636631,1716263454883,-2102.66,0.00039013,6]
[327636632,1716263454892,-1162.48,0.00039013,6]
[327636633,1716263454901,-500.0,0.00039013,6]
[327636634,1716263454913,-843.54,0.00039013,6]
[327636635,1716263454922,-2290.17,0.00039013,6]
[327636636,1716263454932,-509.29095179,0.00039013,6]
[327636637,1716263454941,-1296.53,0.00039013,6]
[327636638,1716263454951,-500.0,0.00039013,6]
[327636639,1716263454960,-1188.41,0.00039013,6]
[327636640,1716263454971,-1456.82,0.00039013,6]
[327636641,1716263454980,-500.0,0.00039013,6]
[327636642,1716263454990,-691.24,0.00039013,6]
[327636643,1716263454999,-500.0,0.00039013,6]
[327636644,1716263455008,-500.0,0.00039013,6]
[327636645,1716263455018,-1379.74,0.00039013,6]
[327636646,1716263455027,-1485.55,0.00039013,6]
[327636647,1716263455037,-500.0,0.00039013,6]
[327636648,1716263455046,-1281.45,0.00039013,6]
[327636649,1716263455055,-1431.69,0.00039013,6]
[327636650,1716263455065,-825.72,0.00039013,6]
[327636651,1716263455074,-837.58,0.00039013,6]
[327636652,1716263455083,-500.0,0.00039013,6]
[327636653,1716263455093,-500.0,0.00039013,6]
[327636654,1716263455102,-500.0,0.00039013,6]
[327636655,1716263455112,-1247.59,0.00039013,6]
[327636656,1716263455121,-779.34,0.00039013,6]
[327636657,1716263455131,-500.0,0.00039013,6]
[327636658,1716263455140,-500.0,0.00039013,6]
[327636659,1716263455150,-1168.23,0.00039013,6]
[327636660,1716263455159,-782.03,0.00039013,6]
[327636661,1716263455168,-510.15814756,0.00039013,6]
[327636662,1716263455178,-500.0,0.00039013,6]
[327636663,1716263455188,-500.0,0.00039013,6]
[327636664,1716263455198,-761.44,0.00039013,6]
[327636665,1716263455207,-1499.85,0.00039013,6]
[327636666,1716263455217,-500.0,0.00039013,6]
[327636667,1716263455226,-508.5906064,0.00039013,6]
[327636668,1716263455236,-1500.47,0.00039013,6]
[327636669,1716263455245,-500.0,0.00039013,6]
[327636670,1716263455255,-500.0,0.00039013,6]
[327636671,1716263455264,-500.0,0.00039013,6]
[327636672,1716263455274,-516.87,0.00039013,6]
[327636673,1716263455283,-2081.74,0.00039013,6]
[327636674,1716263455292,-500.0,0.00039013,6]
[327636675,1716263455302,-1127.44,0.00039013,6]
[327636676,1716263455311,-1591.43,0.00039013,6]
[327636677,1716263455321,-704.15,0.00039013,6]
[327636678,1716263455330,-500.0,0.00039013,6]
[327636679,1716263455340,-1951.76,0.00039013,6]
[327636680,1716263455349,-500.0,0.00039013,6]
[327636681,1716263455359,-500.0,0.00039013,6]
[327636682,1716263455368,-2250.59,0.00039013,6]
[327636683,1716263455378,-500.0,0.00039013,6]
[327636684,1716263455388,-500.0,0.00039013,6]
[327636685,1716263455398,-1175.31,0.00039013,6]
[327636686,1716263455407,-500.0,0.00039013,6]
[327636687,1716263455416,-508.4,0.00039013,6]
[327636688,1716263455426,-798.67,0.00039013,6]
[327636689,1716263455435,-500.0,0.00039013,6]
[327636690,1716263455444,-500.0,0.00039013,6]
[327636691,1716263455453,-500.0,0.00039013,6]
[327636692,1716263455463,-1842.53,0.00039013,6]
[327636693,1716263455473,-627.86,0.00039013,6]
[327636694,1716263455482,-151.0,0.00039013,14]
[327636695,1716263455492,-151.0,0.00039013,14]
[327636696,1716263455501,-500.0,0.00039013,6]
[327636697,1716263455512,-218.65625,0.00039013,14]
[327636698,1716263455522,-500.0,0.00039013,6]
[327636699,1716263455532,-500.0,0.00039013,6]
[327636700,1716263455541,-500.0,0.00039013,6]
[327636701,1716263455551,-500.0,0.00039013,6]
[327636702,1716263455560,-500.0,0.00039013,6]
[327636703,1716263455570,-518.85,0.00039013,6]
[327636704,1716263455580,-831.08,0.00039013,6]
[327636705,1716263455590,-1022.16,0.00039013,6]
[327636706,1716263455600,-715.11,0.00039013,6]
[327636707,1716263455609,-500.0,0.00039013,6]
[327636708,1716263455619,-500.0,0.00039013,6]
[327636709,1716263455628,-509.6644278,0.00039013,6]
[327636710,1716263455638,-500.0,0.00039013,6]
[327636711,1716263455648,-766.12,0.00039013,6]
[327636712,1716263455657,-1772.49,0.00039013,6]
[327636713,1716263455666,-500.0,0.00039013,6]
[327636714,1716263455676,-500.0,0.00039013,6]
[327636715,1716263455685,-500.0,0.00039013,6]
[327636716,1716263455695,-215.31423449,0.00039013,6]
[327636717,1716263455704,-1001.65,0.00039013,6]
[327636718,1716263455714,-500.0,0.00039013,6]
[327636719,1716263455723,-500.0,0.00039013,6]
[327636720,1716263455733,-721.92,0.00039013,6]
[327636721,1716263455742,-1117.3,0.00039013,6]
[327636722,1716263455751,-952.83,0.00039013,6]
[327636723,1716263455761,-982.95,0.00039013,6]
[327636724,1716263455770,-1063.35,0.00039013,6]
[327636725,1716263455780,-500.0,0.00039013,6]
[327636726,1716263455790,-500.0,0.00039013,6]
[327636727,1716263455799,-1173.88,0.00039013,6]
[327636728,1716263455809,-500.0,0.00039013,6]
[327636729,1716263455819,-500.0,0.00039013,6]
[327636730,1716263455828,-537.19842036,0.00039013,6]
[327636731,1716263455838,-989.0,0.00039013,6]
[327636732,1716263455848,-500.0,0.00039013,6]
[327636733,1716263455858,-512.27,0.00039013,6]
[327636734,1716263455868,-500.0,0.00039013,6]
[327636735,1716263455880,-890.9,0.00039013,6]
[327636736,1716263455890,-996.14,0.00039013,6]
[327636737,1716263455899,-500.0,0.00039013,6]
[327636738,1716263455911,-500.0,0.00039013,6]
[327636739,1716263455920,-902.74,0.00039013,6]
[327636740,1716263455929,-500.0,0.00039013,6]
[327636741,1716263455938,-1856.04,0.00039013,6]
[327636742,1716263455948,-1017.27,0.00039013,6]
[327636743,1716263455960,-733.78,0.00039013,6]
[327636744,1716263455970,-1105.43,0.00039013,6]
[327636745,1716263455980,-994.11,0.00039013,6]
[327636746,1716263455991,-185.34693271,0.00039013,6]
[327636747,1716263456001,-500.0,0.00039013,6]
[327636748,1716263456010,-1249.96,0.00039013,6]
[327636749,1716263456020,-500.0,0.00039013,6]
[327636750,1716263456030,-500.0,0.00039013,6]
[327636751,1716263456039,-510.85567483,0.00039013,6]
[327636752,1716263456049,-1368.87,0.00039013,6]
[327636753,1716263456059,-500.0,0.00039013,6]
[327636754,1716263456068,-500.0,0.00039013,6]
[327636755,1716263456078,-508.26768983,0.00039013,6]
[327636756,1716263456087,-1560.13,0.00039013,6]
[327636757,1716263456097,-1132.63,0.00039013,6]
[327636758,1716263456108,-500.0,0.00039013,6]
[327636759,1716263456118,-500.0,0.00039013,6]
[327636760,1716263456127,-500.0,0.00039013,6]
[327636761,1716263456137,-1161.2,0.00039013,6]
[327636762,1716263456149,-952.91,0.00039013,6]
[327636763,1716263456158,-1524.66,0.00039013,6]
[327636764,1716263456167,-500.0,0.00039013,6]
[327636765,1716263456178,-500.0,0.00039013,6]
[327636766,1716263456188,-500.0,0.00039013,6]
[327636767,1716263456197,-500.0,0.00039013,6]
[327636768,1716263456206,-1318.64,0.00039013,6]
[327636769,1716263456217,-502.08,0.00039013,6]
[327636770,1716263456226,-500.0,0.00039013,6]
[327636771,1716263456236,-1165.33,0.00039013,6]
[327636772,1716263456246,-500.0,0.00039013,6]
[327636773,1716263456256,-577.58,0.00039013,6]
[327636774,1716263456266,-1680.3,0.00039013,6]
[327636775,1716263456276,-500.0,0.00039013,6]
[327636776,1716263456286,-504.22011288,0.00039013,6]
[327636777,1716263456295,-500.0,0.00039013,6]
[327636778,1716263456305,-1275.13,0.00039013,6]
[327636779,1716263456315,-1031.06,0.00039013,6]
[327636780,1716263456324,-2330.8,0.00039013,6]
[327636781,1716263456334,-1082.26,0.00039013,6]
[327636782,1716263456344,-592.75,0.00039013,6]
[327636783,1716263456354,-1752.81,0.00039013,6]
[327636784,1716263456364,-2011.2,0.00039013,6]
[327636785,1716263456374,-496.68447386,0.00039013,6]
[327636786,1716263456383,-500.0,0.00039013,6]
[327636787,1716263456393,-1222.4,0.00039013,6]
[327636788,1716263456402,-1163.13,0.00039013,6]
[327636789,1716263456411,-500.0,0.00039013,6]
[327636790,1716263456421,-500.0,0.00039013,6]
[327636791,1716263456430,-1319.7,0.00039013,6]
[327636792,1716263456439,-300.29459027,0.00039013,6]
[327636793,1716263456448,-1109.83,0.00039013,6]
[327636794,1716263456458,-500.0,0.00039013,6]
[327636795,1716263456468,-500.0,0.00039013,6]
[327636796,1716263456478,-1257.2,0.00039013,6]
[327636797,1716263456487,-1354.98,0.00039013,6]
[327636798,1716263456497,-500.0,0.00039013,6]
[327636799,1716263456507,-514.94284482,0.00039013,6]
[327636800,1716263456516,-1513.13,0.00039013,6]
[327636801,1716263456526,-1088.24,0.00039013,6]
[327636802,1716263456535,-500.0,0.00039013,6]
[327636803,1716263456545,-1896.97,0.00039013,6]
[327636804,1716263456555,-500.0,0.00039013,6]
[327636805,1716263456564,-1327.29,0.00039013,6]
[327636806,1716263456574,-1000.82,0.00039013,6]
[327636807,1716263456583,-515.37,0.00039013,6]
[327636808,1716263456593,-500.0,0.00039013,6]
[327636809,1716263456602,-1744.63,0.00039013,6]
[327636810,1716263456611,-555.31,0.00039013,6]
[327636811,1716263456620,-564.62,0.00039013,6]
[327636812,1716263456629,-604.42,0.00039013,6]
[327636813,1716263456639,-500.0,0.00039013,6]
[327636814,1716263456648,-500.0,0.00039013,6]
[327636815,1716263456657,-500.0,0.00039013,6]
[327636816,1716263456666,-785.03,0.00039013,6]
[327636817,1716263456675,-500.0,0.00039013,6]
[327636818,1716263456685,-1706.06,0.00039013,6]
[327636819,1716263456693,-860.3,0.00039013,6]
[327636820,1716263456703,-964.49,0.00039013,6]
[327636821,1716263456713,-513.39,0.00039013,6]
[327636822,1716263456723,-511.51880739,0.00039013,6]
[327636823,1716263456733,-2162.05,0.00039013,6]
[327636824,1716263456744,-543.88,0.00039013,6]
[327636825,1716263456754,-500.0,0.00039013,6]
[327636826,1716263456764,-846.15,0.00039013,6]
[327636827,1716263456774,-677.06,0.00039013,6]
[327636828,1716263456783,-163.328042,0.00039013,14]
[327636829,1716263456793,-729.24,0.00039013,6]
[327636830,1716263456802,-500.0,0.00039013,6]
[327636831,1716263456813,-1558.53,0.00039013,6]
[327636832,1716263456823,-500.0,0.00039013,6]
[327636833,1716263456834,-1593.23,0.00039013,6]
[327636834,1716263456845,-296.882742,0.00039013,14]
[327636835,1716263456855,-513.40873933,0.00039013,6]
[327636836,1716263456867,-766.22,0.00039013,6]
[327636837,1716263456880,-500.0,0.00039013,6]
[327636838,1716263456889,-500.0,0.00039013,6]
[327636839,1716263456900,-877.15,0.00039013,6]
[327636840,1716263456911,-1222.33,0.00039013,6]
[327636841,1716263456924,-1050.88,0.00039013,6]
[327636842,1716263456934,-909.97,0.00039013,6]
[327636843,1716263456944,-3904.38,0.00039013,6]
[327636844,1716263456956,-1618.06,0.00039013,6]
[327636845,1716263456968,-500.0,0.00039013,6]
[327636846,1716263456977,-834.74,0.00039013,6]
[327636847,1716263456987,-500.0,0.00039013,6]
[327636848,1716263457065,-619.07,0.00039013,6]
[327636849,1716263457075,-349.32495617,0.00039013,6]
[327636850,1716263457084,-724.56,0.00039013,6]
[327636851,1716263457094,-500.0,0.00039013,6]
[327636852,1716263457103,-500.0,0.00039013,6]
[327636853,1716263457114,-500.0,0.00039013,6]
[327636854,1716263457123,-500.0,0.00039013,6]
[327636855,1716263457132,-4256.96,0.00039013,6]
[327636856,1716263457142,-672.77,0.00039013,6]
[327636857,1716263457151,-455.22640705,0.00039013,6]
[327636858,1716263457160,-918.45,0.00039013,6]
[327636859,1716263457169,-610.95,0.00039013,6]
[327636860,1716263457180,-3163.34,0.00039013,6]
[327636861,1716263457189,-500.0,0.00039013,6]
[327636862,1716263457198,-557.34,0.00039013,6]
[327636863,1716263457208,-2458.38,0.00039013,6]
[327636864,1716263457217,-500.0,0.00039013,6]
[327636865,1716263457226,-509.86892489,0.00039013,6]
[327636866,1716263457236,-500.0,0.00039013,6]
[327636867,1716263457245,-500.0,0.00039013,6]
[327636868,1716263457254,-500.0,0.00039013,6]
[327636869,1716263457264,-1230.08,0.00039013,6]
[327636870,1716263457273,-504.75,0.00039013,6]
[327636871,1716263457283,-568.44,0.00039013,6]
[327636872,1716263457292,-2281.57,0.00039013,6]
[327636873,1716263457302,-1673.95,0.00039013,6]
[327636874,1716263457312,-1514.65,0.00039013,6]
[327636875,1716263457321,-151.0,0.00039013,14]
[327636876,1716263457331,-181.178196,0.00039013,14]
[327636877,1716263457341,-1920.0,0.00039013,6]
[327636878,1716263457350,-526.15,0.00039013,6]
[327636879,1716263457360,-1166.48,0.00039013,6]
[327636880,1716263457369,-151.0,0.00039013,14]
[327636881,1716263457379,-241.904024,0.00039013,14]
[327636882,1716263457388,-500.0,0.00039013,6]
[327636883,1716263457397,-500.0,0.00039013,6]
[327636884,1716263457407,-1468.12,0.00039013,6]
[327636885,1716263457416,-519.82330857,0.00039013,6]
[327636886,1716263457426,-500.0,0.00039013,6]
[327636887,1716263457435,-500.0,0.00039013,6]
[327636888,1716263457444,-500.0,0.00039013,6]
[327636889,1716263457454,-3452.45,0.00039013,6]
[327636890,1716263457464,-500.0,0.00039013,6]
[327636891,1716263457473,-1581.95,0.00039013,6]
[327636892,1716263457482,-2637.4,0.00039013,6]
[327636893,1716263457491,-151.0,0.00039013,14]
[327636894,1716263457500,-576.21,0.00039013,6]
[327636895,1716263457510,-151.0,0.00039013,14]
[327636896,1716263457519,-151.0,0.00039013,14]
[327636897,1716263457529,-151.0,0.00039013,14]
[327636898,1716263457539,-500.0,0.00039013,6]
[327636899,1716263457548,-1614.4,0.00039013,6]
[327636900,1716263457557,-527.9,0.00039013,6]
[327636901,1716263457567,-1216.39,0.00039013,6]
[327636902,1716263457576,-500.0,0.00039013,6]
[327636903,1716263457586,-500.0,0.00039013,6]
[327636904,1716263457595,-4243.35,0.00039013,6]
[327636905,1716263457605,-1289.88,0.00039013,6]
[327636906,1716263457617,-2139.44,0.00039013,6]
[327636907,1716263457628,-2725.34,0.00039013,6]
[327636908,1716263457638,-336.8824872,0.00039013,6]
[327636909,1716263457648,-500.0,0.00039013,6]
[327636910,1716263457658,-1033.99,0.00039013,6]
[327636911,1716263457668,-500.0,0.00039013,6]
[327636912,1716263457678,-1344.4,0.00039013,6]
[327636913,1716263457688,-500.0,0.00039013,6]
[327636914,1716263457698,-1280.54,0.00039013,6]
[327636915,1716263457708,-500.0,0.00039013,6]
[327636916,1716263457718,-1242.63,0.00039013,6]
[327636917,1716263457729,-1609.99,0.00039013,6]
[327636918,1716263457738,-603.32,0.00039013,6]
[327636919,1716263457748,-1607.48,0.00039013,6]
[327636920,1716263457758,-1480.23,0.00039013,6]
[327636921,1716263457767,-500.0,0.00039013,6]
[327636922,1716263457777,-713.43,0.00039013,6]
[327636923,1716263457788,-500.0,0.00039013,6]
[327636924,1716263457799,-500.0,0.00039013,6]
[327636925,1716263457811,-640.81,0.00039013,6]
[327636926,1716263457821,-27085.52,0.00039013,6]
[327636927,1716263457831,-151.0,0.00039013,14]
[327636928,1716263457840,-151.0,0.00039013,14]
[327636929,1716263457850,-151.0,0.00039013,14]
[327636930,1716263457860,-521.11,0.00039013,6]
[327636931,1716263457874,-151.0,0.00039013,14]
[327636932,1716263457883,-500.0,0.00039013,6]
[327636933,1716263457892,-508.0850271,0.00039013,6]
[327636934,1716263457902,-4717.14,0.00039013,6]
[327636935,1716263457914,-2845.85,0.00039013,6]
[327636936,1716263457924,-1656.1,0.00039013,6]
[327636937,1716263457935,-600.48,0.00039013,6]
[327636938,1716263457946,-961.0,0.00039013,6]
[327636939,1716263457958,-2556.42,0.00039013,6]
[327636940,1716263457967,-2542.89,0.00039013,6]
[327636941,1716263457977,-1415.15,0.00039013,6]
[327636942,1716263457986,-500.0,0.00039013,6]
[327636943,1716263457995,-500.0,0.00039013,6]
[327636944,1716263458006,-1196.1,0.00039013,6]
[327636945,1716263458016,-609.39,0.00039013,6]
[327636946,1716263458029,-1551.81,0.00039013,6]
[327636947,1716263458039,-552.97,0.00039013,6]
[327636948,1716263458049,-500.0,0.00039013,6]
[327636949,1716263458059,-1324.01,0.00039013,6]
[327636950,1716263458069,-500.0,0.00039013,6]
[327636951,1716263458079,-2682.4,0.00039013,6]
[327636952,1716263458088,-500.0,0.00039013,6]
[327636953,1716263458098,-538.47,0.00039013,6]
[327636954,1716263458108,-850.71,0.00039013,6]
[327636955,1716263458119,-1803.57,0.00039013,6]
[327636956,1716263458128,-1119.17,0.00039013,6]
[327636957,1716263458137,-1304.87,0.00039013,6]
[327636958,1716263458147,-500.0,0.00039013,6]
[327636959,1716263458156,-6376.41,0.00039013,6]
[327636960,1716263458166,-5031.77,0.00039013,6]
[327636961,1716263458175,-1329.01329951,0.00039013,6]
[327636962,1716263459328,-133.41670049,0.00039013,6]
[327636963,1716263459338,-810.07,0.00039013,6]
[327636964,1716263459349,-12217.73,0.00039013,6]
[327636965,1716263459358,-549.04,0.00039013,6]
[327636966,1716263459370,-2892.85,0.00039013,6]
[327636967,1716263459379,-3974.22,0.00039013,6]
[327636968,1716263459388,-711.54,0.00039013,6]
[327636969,1716263459398,-883.99,0.00039013,6]
[327636970,1716263459408,-1279.93,0.00039013,6]
[327636971,1716263459417,-1238.58,0.00039013,6]
[327636972,1716263459427,-1794.98,0.00039013,6]
[327636973,1716263459437,-7654.13,0.00039013,6]
[327636974,1716263459446,-2014.66,0.00039013,6]
[327636975,1716263459456,-2138.86,0.00039013,6]
[327636976,1716263459465,-600.12,0.00039013,6]
[327636977,1716263459474,-500.0,0.00039013,6]
[327636978,1716263459483,-500.0,0.00039013,6]
[327636979,1716263459493,-1229.44,0.00039013,6]
[327636980,1716263459502,-2857.48,0.00039013,6]
[327636981,1716263459512,-13541.62,0.00039013,6]
[327636982,1716263459521,-9286.69,0.00039013,6]
[327636983,1716263459530,-921.28,0.00039013,6]
[327636984,1716263459539,-500.0,0.00039013,6]
[327636985,1716263459548,-1594.2,0.00039013,6]
[327636986,1716263459558,-500.0,0.00039013,6]
[327636987,1716263459567,-500.0,0.00039013,6]
[327636988,1716263459577,-3115.73,0.00039013,6]
[327636989,1716263459586,-500.0,0.00039013,6]
[327636990,1716263459595,-1667.77,0.00039013,6]
[327636991,1716263459604,-1044.44,0.00039013,6]
[327636992,1716263459614,-3400.61,0.00039013,6]
[327636993,1716263459623,-500.0,0.00039013,6]
[327636994,1716263459632,-6143.78,0.00039013,6]
[327636995,1716263459641,-500.0,0.00039013,6]
[327636996,1716263459651,-1977.24,0.00039013,6]
[327636997,1716263459660,-500.0,0.00039013,6]
[327636998,1716263459669,-1467.86,0.00039013,6]
[327636999,1716263459677,-579.81033498,0.00039013,6]
[327637000,1716263459690,-805.291941,0.00039013,6]
[327637001,1716263459721,-319.999995,0.00039013,6]
[327637002,1716263459733,-206.83772902,0.00039013,6]
[327637003,1716263459741,-593.36667636,0.00039013,6]
[327637004,1716263459753,-1237.57332364,0.00039013,6]
[327637005,1716263459762,-2007.33,0.00039013,6]
[327637006,1716263459771,-1065.92,0.00039013,6]
[327637007,1716263459780,-1950.28,0.00039013,6]
[327637008,1716263459789,-500.0,0.00039013,6]
[327637009,1716263459798,-2287.42,0.00039013,6]
[327637010,1716263459807,-500.0,0.00039013,6]
[327637011,1716263459816,-508.4138487,0.00039013,6]
[327637012,1716263459826,-1178.63,0.00039013,6]
[327637013,1716263459835,-500.0,0.00039013,6]
[327637014,1716263459844,-545.36,0.00039013,6]
[327637015,1716263459853,-802.85,0.00039013,6]
[327637016,1716263459864,-12764.72112696,0.00039013,6]
[327637017,1716263460247,-21167.51887304,0.00039013,6]
[327637018,1716263460256,-2976.83,0.00039013,6]
[327637019,1716263460266,-1901.04,0.00039013,6]
[327637020,1716263460275,-3342.6,0.00039013,6]
[327637021,1716263460285,-13840.19,0.00039013,6]
[327637022,1716263460295,-509.41238268,0.00039013,6]
[327637023,1716263460304,-1924.15,0.00039013,6]
[327637024,1716263460313,-1876.54,0.00039013,6]
[327637025,1716263460323,-500.0,0.00039013,6]
[327637026,1716263460332,-2362.47,0.00039013,6]
[327637027,1716263460342,-500.0,0.00039013,6]
[327637028,1716263460351,-500.0,0.00039013,6]
[327637029,1716263460360,-1606.68,0.00039013,6]
[327637030,1716263460371,-1718.03,0.00039013,6]
[327637031,1716263460380,-2789.9,0.00039013,6]
[327637032,1716263460389,-653.79,0.00039013,6]
[327637033,1716263460398,-500.0,0.00039013,6]
[327637034,1716263460407,-2374.98,0.00039013,6]
[327637035,1716263460416,-2000.0,0.00039013,6]
[327637036,1716263460426,-500.0,0.00039013,6]
[327637037,1716263460435,-1464.72,0.00039013,6]
[327637038,1716263460445,-500.0,0.00039013,6]
[327637039,1716263460454,-500.0,0.00039013,6]
[327637040,1716263460463,-16497.84,0.00039013,6]
[327637041,1716263460473,-1008.55,0.00039013,6]
[327637042,1716263460482,-500.0,0.00039013,6]
[327637043,1716263460492,-719.07,0.00039013,6]
[327637044,1716263460501,-500.0,0.00039013,6]
[327637045,1716263460512,-1919.03155873,0.00039013,6]
[327637046,1716263461150,-0.02186451,0.00038904,6]
[327637047,1716263461170,-499.97813549,0.00038904,6]
[327637048,1716263461180,-587.959271,0.00038904,14]
[327637049,1716263461189,-556.55,0.00038904,30]
[327637050,1716263461198,-587.959271,0.00038904,14]
[327637051,1716263461207,-151.0,0.00038904,14]
[327637052,1716263461217,-151.0,0.00038904,14]
[327637053,1716263461226,-7330.75844127,0.00039013,6]
[327637054,1716263461236,-1801.79,0.00039013,6]
[327637055,1716263461246,-1940.6,0.00039013,6]
[327637056,1716263461256,-500.0,0.00039013,6]
[327637057,1716263461265,-1020.66,0.00039013,6]
[327637058,1716263461275,-3181.09,0.00039013,6]
[327637059,1716263461284,-5004.86,0.00039013,6]
[327637060,1716263461294,-3016.23,0.00039013,6]
[327637061,1716263461303,-2679.83,0.00039013,6]
[327637062,1716263461313,-623.97,0.00039013,6]
[327637063,1716263461322,-1487.6,0.00039013,6]
[327637064,1716263461332,-500.0,0.00039013,6]
[327637065,1716263461341,-1849.47,0.00039013,6]
[327637066,1716263461351,-151.0,0.00039013,14]
[327637067,1716263461360,-1000.4,0.00039013,6]
[327637068,1716263461372,-151.0,0.00039013,14]
[327637069,1716263461380,-151.0,0.00039013,14]